[Event "CZE-ch Open 2019"]
[Site "Ostrava"]
[Date "2019.05.03"]
[Round "7.1"]
[White "Kislinsky, Alexey"]
[Black "Cernousek, Lukas"]
[Result "0-1"]
[ECO "C39"]
[WhiteElo "2429"]
[BlackElo "2438"]
[Annotator "RC"]
[PlyCount "60"]
[EventDate "2019.04.27"]
[EventType "swiss"]
[EventCountry "CZE"]
[SourceTitle "playchess.com"]
[Source "ChessBase"]
[SourceQuality "1"]
[TimeControl "40/5400+30:1800+30"]

1. e4 {[%emt 0:07:24]} e5 {[%emt 0:00:00]} 2. f4 {[%emt 0:00:32]} exf4 {[%emt 0:00:05]} 3. Nf3 {[%emt 0:03:40]} g5 {[%emt 0:00:08]} 4. h4 {[%emt 0:00:51]} g4 {[%emt 0:00:09]} 5. Ne5 {[%emt 0:00:05]} Nf6 {[%emt 0:00:10]} 6. Nxg4 {[%emt 0:01:19]} Nxe4 {[%emt 0:00:31]} 7. d3 {[%emt 0:03:56]} Ng3 {[%emt 0:00:15]} 8. Bxf4 {[%emt 0:01:32]} Nxh1 {[%emt 0:00:13]} 9. Qe2+ {[%emt 0:00:19]} Qe7 {[%emt 0:00:16]} 10. Nf6+ {[%emt 0:00:06]} Kd8 {[%emt 0:00:10]} 11. Bxc7+ {[%emt 0:00:05]} Kxc7 {[%emt 0:00:11]} 12. Nd5+ {[%emt 0:00:04]} Kd8 {[%emt 0:00:29]} 13. Nxe7 {[%emt 0:00:05]} Bxe7 {[%emt 0:00:18]} 14. Qg4 {[%emt 0:04:36]} d6 {[%emt 0:24:10]} 15. Qf4 {[%emt 0:02:52]} Rg8 {[%emt 0:07:56]} 16. Qxf7 {[%emt 0:03:08]} Re8 {[%emt 0:03:44]} 17. Na3 {[%emt 0:08:02]} Bxh4+ {[%emt 0:00:10]} 18. Kd2 {[%emt 0:00:06]} Bg5+ {[%emt 0:19:57]} 19. Kc3 {[%emt 0:00:44]} Bd7 {[%emt 0:00:15]} 20. Nc4 {[%emt 0:20:28]} Kc7 {[%emt 0:00:23]} 21. Qd5 {[%emt 0:00:48]} Bf4 {[%emt 0:00:53]} 22. Qa5+ {[%emt 0:03:26]} b6 {[%emt 0:08:14]} 23. Qh5 {[%emt 0:05:40]} b5 {[%emt 0:16:50]} 24. Na5 {[%emt 0:02:11]} b4+ {[%emt 0:07:59]} 25. Kb3 {[%emt 0:02:15]} Na6 {[%emt 0:04:10]} 26. Qxh1 {[%emt 0:06:27]} Nc5+ {[%emt 0:02:43]} 27. Kxb4 {[%emt 0:10:35]} Rab8+ {[%emt 0:00:03]} 28. Kc4 {[%emt 0:01:40]} d5+ {[%emt 0:02:52]} 29. Kc3 {[%emt 0:08:54]} Na4+ {[%emt 0:00:39]} 30. Kd4 {[%emt 0:00:35]} Be3+ {[%emt 0:00:34]} 0-1

[Event "CZE-ch Open 2019"]
[Site "Ostrava"]
[Date "2019.05.03"]
[Round "7.6"]
[White "Kriebel, Tadeas"]
[Black "Zwardon, Vojtech"]
[Result "1/2-1/2"]
[ECO "B36"]
[WhiteElo "2514"]
[BlackElo "2458"]
[Annotator "RC"]
[PlyCount "127"]
[EventDate "2019.04.27"]
[EventType "swiss"]
[EventCountry "CZE"]
[SourceTitle "playchess.com"]
[Source "ChessBase"]
[SourceQuality "1"]
[TimeControl "40/5400+30:1800+30"]

1. e4 {[%emt 0:00:00]} c5 {[%emt 0:01:38]} 2. Nf3 {[%emt 0:00:00]} Nc6 {[%emt 0:00:04]} 3. d4 {[%emt 0:00:00]} cxd4 {[%emt 0:00:09]} 4. Nxd4 {[%emt 0:00:00]} g6 {[%emt 0:00:01]} 5. c4 {[%emt 0:00:18]} Nf6 {[%emt 0:00:34]} 6. Nc3 {[%emt 0:00:07]} Nxd4 {[%emt 0:00:05]} 7. Qxd4 {[%emt 0:00:07]} d6 {[%emt 0:00:01]} 8. Be3 {[%emt 0:01:27]} Bg7 {[%emt 0:00:05]} 9. Be2 {[%emt 0:00:07]} O-O {[%emt 0:00:07]} 10. Qd3 {[%emt 0:00:08]} Be6 {[%emt 0:09:41]} 11. Bd4 {[%emt 0:00:20]} Rc8 {[%emt 0:03:07]} 12. b3 {[%emt 0:00:53]} Nd7 {[%emt 0:02:03]} 13. Bxg7 {[%emt 0:03:36]} Kxg7 {[%emt 0:00:09]} 14. O-O {[%emt 0:06:07]} Kg8 {[%emt 0:00:36]} 15. Kh1 {[%emt 0:00:59]} Qa5 {[%emt 0:01:48]} 16. f4 {[%emt 0:03:33]} f5 {[%emt 0:01:37]} 17. exf5 {[%emt 0:05:48]} Bxf5 {[%emt 0:03:27]} 18. Qd5+ {[%emt 0:01:53]} Qxd5 {[%emt 0:00:05]} 19. Nxd5 {[%emt 0:00:11]} Rf7 {[%emt 0:06:23]} 20. Bf3 {[%emt 0:00:51]} Nc5 {[%emt 0:01:10]} 21. Rfe1 {[%emt 0:08:07]} e6 {[%emt 0:06:14]} 22. Ne3 {[%emt 0:01:38]} a5 {[%emt 0:03:59]} 23. Nxf5 {[%emt 0:03:52]} gxf5 {[%emt 0:00:17]} 24. Rad1 {[%emt 0:00:22]} Rd8 {[%emt 0:00:31]} 25. Re3 {[%emt 0:03:13]} Kg7 {[%emt 0:01:16]} 26. a3 {[%emt 0:08:37]} Kf6 {[%emt 0:01:27]} 27. h3 {[%emt 0:02:56]} Re7 {[%emt 0:03:02]} 28. g4 {[%emt 0:01:17]} h6 {[%emt 0:01:03]} 29. Kh2 {[%emt 0:02:36]} fxg4 {[%emt 0:08:18]} 30. hxg4 {[%emt 0:00:14]} e5 {[%emt 0:01:50]} 31. Rd5 {[%emt 0:01:09]} e4 {[%emt 0:04:47]} 32. b4 {[%emt 0:03:47]} axb4 {[%emt 0:00:38]} 33. axb4 {[%emt 0:00:06]} Nd3 {[%emt 0:11:22]} 34. Rxe4 {[%emt 0:00:09]} Rxe4 {[%emt 0:00:12]} 35. Bxe4 {[%emt 0:00:07]} Nxb4 {[%emt 0:01:09]} 36. Rf5+ {[%emt 0:01:17]} Kg7 {[%emt 0:12:51]} 37. Rb5 {[%emt 0:00:10]} Re8 {[%emt 0:01:41]} 38. Rxb7+ {[%emt 0:00:05]} Kf8 {[%emt 0:00:08]} 39. Bf5 {[%emt 0:05:58]} Nc6 {[%emt 0:00:33]} 40. Rh7 {[%emt 0:00:06]} Re2+ {[%emt 0:00:31]} 41. Kh3 {[%emt 0:31:35]} Nd4 {[%emt 0:30:17]} 42. Rxh6 {[%emt 0:01:02]} Re3+ {[%emt 0:00:15]} 43. Kh4 {[%emt 0:17:46]} Nxf5+ {[%emt 0:00:00]} 44. gxf5 {[%emt 0:00:05]} Rc3 {[%emt 0:00:00]} 45. Kg5 {[%emt 0:00:46]} Rxc4 {[%emt 0:00:00]} 46. Kg6 {[%emt 0:00:49]} Rxf4 {[%emt 0:00:00]} 47. Rh8+ {[%emt 0:00:06]} Ke7 {[%emt 0:00:00]} 48. Rh7+ {[%emt 0:00:09]} Ke8 {[%emt 0:00:00]} 49. Kf6 {[%emt 0:01:39]} Re4 {[%emt 0:00:00]} 50. Ra7 {[%emt 0:06:11]} d5 {[%emt 0:00:00]} 51. Ra8+ {[%emt 0:01:55]} Kd7 {[%emt 0:00:00]} 52. Kg6 {[%emt 0:00:05]} Rg4+ {[%emt 0:00:00]} 53. Kf7 {[%emt 0:00:06]} d4 {[%emt 0:00:00]} 54. Ra4 {[%emt 0:06:56]} Kc6 {[%emt 0:00:00]} 55. f6 {[%emt 0:00:30]} Kb5 {[%emt 0:00:00]} 56. Ra1 {[%emt 0:00:07]} Rf4 {[%emt 0:00:00]} 57. Ke6 {[%emt 0:00:10]} d3 {[%emt 0:00:00]} 58. Ke5 {[%emt 0:00:49]} Rf2 {[%emt 0:00:00]} 59. Rd1 {[%emt 0:01:54]} Kc4 {[%emt 0:00:00]} 60. Ke6 {[%emt 0:00:06]} d2 {[%emt 0:00:00]} 61. f7 {[%emt 0:00:12]} Kd3 {[%emt 0:00:00]} 62. Rxd2+ {[%emt 0:00:08]} Kxd2 {[%emt 0:00:00]} 63. Ke7 {[%emt 0:00:02]} Rxf7+ {[%emt 0:00:00]} 64. Kxf7 1/2-1/2

[Event "CZE-ch Open 2019"]
[Site "Ostrava"]
[Date "2019.05.03"]
[Round "7.12"]
[White "Worek, Joanna"]
[Black "Miesbauer, Jan"]
[Result "0-1"]
[ECO "B83"]
[WhiteElo "2299"]
[BlackElo "2402"]
[Annotator "ChessBase"]
[PlyCount "108"]
[EventDate "2019.04.27"]
[EventType "swiss"]
[EventCountry "CZE"]
[SourceTitle "playchess.com"]
[Source "ChessBase"]
[SourceQuality "1"]
[TimeControl "40/5400+30:1800+30"]

1. e4 {[%emt 0:00:00]} c5 {[%emt 0:00:00]} 2. Nf3 {[%emt 0:00:00]} Nc6 {[%emt 0:00:00]} 3. d4 {[%emt 0:00:00]} cxd4 {[%emt 0:00:00]} 4. Nxd4 {[%emt 0:00:00]} e6 {[%emt 0:00:13]} 5. Nc3 {[%emt 0:00:04]} d6 {[%emt 0:00:19]} 6. Be2 {[%emt 0:00:27]} Nf6 {[%emt 0:00:42]} 7. O-O {[%emt 0:00:13]} Be7 {[%emt 0:00:27]} 8. Be3 {[%emt 0:00:35]} O-O {[%emt 0:00:42]} 9. f4 {[%emt 0:00:34]} a6 {[%emt 0:00:48]} 10. Kh1 {[%emt 0:01:16]} Qc7 {[%emt 0:01:00]} 11. a4 {[%emt 0:04:36]} Nxd4 {[%emt 0:01:58]} 12. Qxd4 {[%emt 0:00:43]} e5 {[%emt 0:01:15]} 13. Qd2 {[%emt 0:00:36]} exf4 {[%emt 0:04:25]} 14. Bxf4 {[%emt 0:03:57]} Be6 {[%emt 0:00:10]} 15. Rad1 {[%emt 0:04:10]} Rad8 {[%emt 0:00:07]} 16. Qe3 {[%emt 0:02:42]} Nd7 {[%emt 0:03:31]} 17. Bd3 {[%emt 0:08:48]} Bf6 {[%emt 0:03:22]} 18. Qg3 {[%emt 0:14:48]} Be5 {[%emt 0:00:12]} 19. Ne2 {[%emt 0:00:08]} Qc6 {[%emt 0:06:58]} 20. b3 {[%emt 0:00:27]} Nc5 {[%emt 0:02:55]} 21. Bxe5 {[%emt 0:10:31]} dxe5 {[%emt 0:00:06]} 22. Qxe5 {[%emt 0:00:02]} Nxd3 {[%emt 0:01:25]} 23. Rxd3 {[%emt 0:00:05]} Qxc2 {[%emt 0:00:45]} 24. Rxd8 {[%emt 0:05:54]} Rxd8 {[%emt 0:00:06]} 25. Nf4 {[%emt 0:00:03]} Qd1 {[%emt 0:22:32]} 26. Kg1 {[%emt 0:02:09]} Qd4+ {[%emt 0:00:06]} 27. Qxd4 {[%emt 0:00:04]} Rxd4 {[%emt 0:00:05]} 28. Nxe6 {[%emt 0:00:12]} fxe6 {[%emt 0:00:05]} 29. Rc1 {[%emt 0:01:08]} Rb4 {[%emt 0:00:06]} 30. Rc3 {[%emt 0:00:33]} b6 {[%emt 0:00:36]} 31. e5 {[%emt 0:06:46]} Kf7 {[%emt 0:13:36]} 32. Kf2 {[%emt 0:01:41]} h5 {[%emt 0:01:11]} 33. h3 {[%emt 0:07:44]} Kg6 {[%emt 0:04:00]} 34. Rf3 {[%emt 0:02:05]} h4 {[%emt 0:03:11]} 35. g4 {[%emt 0:09:08]} Kg5 {[%emt 0:02:04]} 36. Kg2 {[%emt 0:01:43]} Re4 {[%emt 0:06:48]} 37. a5 {[%emt 0:04:29]} bxa5 {[%emt 0:02:32]} 38. Rc3 {[%emt 0:00:35]} Rxe5 {[%emt 0:01:08]} 39. Kf3 {[%emt 0:00:25]} Rb5 {[%emt 0:01:35]} 40. Ke4 {[%emt 0:00:06]} Kf6 {[%emt 0:01:16]} 41. Rf3+ {[%emt 0:30:39]} Ke7 {[%emt 0:30:08]} 42. Rd3 {[%emt 0:06:41]} Rb4+ {[%emt 0:01:21]} 43. Ke5 {[%emt 0:01:07]} a4 {[%emt 0:00:40]} 44. bxa4 {[%emt 0:00:21]} Rxa4 {[%emt 0:00:05]} 45. g5 {[%emt 0:00:04]} Ra5+ {[%emt 0:01:45]} 46. Kf4 {[%emt 0:00:01]} g6 {[%emt 0:01:00]} 47. Rc3 {[%emt 0:02:31]} e5+ {[%emt 0:00:16]} 48. Ke4 {[%emt 0:00:12]} Kd6 {[%emt 0:00:10]} 49. Rc4 {[%emt 0:00:21]} Rb5 {[%emt 0:03:29]} 50. Rc8 {[%emt 0:01:13]} Rb4+ {[%emt 0:00:17]} 51. Ke3 {[%emt 0:00:01]} Ke6 {[%emt 0:00:31]} 52. Rf8 {[%emt 0:01:24]} Rf4 {[%emt 0:00:17]} 53. Ra8 {[%emt 0:00:03]} Kf5 {[%emt 0:01:16]} 54. Rxa6 {[%emt 0:00:06]} Rb4 {[%emt 0:00:28] Kd4} 0-1

[Event "CZE-ch Open 2019"]
[Site "Ostrava"]
[Date "2019.05.03"]
[Round "7.13"]
[White "Liska, Jiri"]
[Black "Mrazek, Lumir"]
[Result "0-1"]
[ECO "B50"]
[WhiteElo "2236"]
[BlackElo "2364"]
[Annotator "NA"]
[PlyCount "66"]
[EventDate "2019.04.27"]
[EventType "swiss"]
[EventCountry "CZE"]
[SourceTitle "playchess.com"]
[Source "ChessBase"]
[SourceQuality "1"]
[TimeControl "40/5400+30:1800+30"]

1. e4 {[%emt 0:00:00]} c5 {[%emt 0:00:39]} 2. Nf3 {[%emt 0:00:00]} d6 {[%emt 0:00:06]} 3. c3 {[%emt 0:00:15]} Nf6 {[%emt 0:00:56]} 4. Be2 {[%emt 0:00:21]} Nc6 {[%emt 0:00:39]} 5. d4 {[%emt 0:00:27]} cxd4 {[%emt 0:00:54]} 6. cxd4 {[%emt 0:00:21]} d5 {[%emt 0:02:01]} 7. e5 {[%emt 0:02:41]} Ne4 {[%emt 0:01:54]} 8. O-O {[%emt 0:02:07]} Bg4 {[%emt 0:03:15]} 9. h3 {[%emt 0:02:34]} Bh5 {[%emt 0:02:23]} 10. g4 {[%emt 0:08:34]} Bg6 {[%emt 0:01:28]} 11. Qb3 {[%emt 0:03:05]} Qd7 {[%emt 0:04:48]} 12. e6 {[%emt 0:03:04]} Qxe6 {[%emt 0:02:30]} 13. Qxb7 {[%emt 0:02:08]} Rb8 {[%emt 0:04:59]} 14. Qa6 {[%emt 0:09:49]} Rb6 {[%emt 0:03:36]} 15. Qa4 {[%emt 0:01:17]} Rb4 {[%emt 0:00:30]} 16. Qa6 {[%emt 0:14:48]} Rb6 {[%emt 0:00:27]} 17. Qa4 {[%emt 0:01:23]} f6 {[%emt 0:01:27]} 18. Bf4 {[%emt 0:14:03]} Rb4 {[%emt 0:30:34]} 19. Qa3 {[%emt 0:11:49]} Kf7 {[%emt 0:03:02]} 20. Rc1 {[%emt 0:01:52]} a5 {[%emt 0:06:07]} 21. Qe3 {[%emt 0:06:22]} h5 {[%emt 0:05:34]} 22. g5 {[%emt 0:01:06]} Rxb2 {[%emt 0:03:54]} 23. Na3 {[%emt 0:02:16]} Bf5 {[%emt 0:08:36]} 24. h4 {[%emt 0:08:01]} Bg4 {[%emt 0:00:13]} 25. Rc2 {[%emt 0:00:31]} Rxc2 {[%emt 0:03:14]} 26. Nxc2 {[%emt 0:00:01]} Qf5 {[%emt 0:00:01]} 27. Rd1 {[%emt 0:03:24]} e6 {[%emt 0:00:11]} 28. Nce1 {[%emt 0:00:32]} e5 {[%emt 0:04:03]} 29. Bh2 {[%emt 0:00:42]} Nxd4 {[%emt 0:01:46]} 30. Nxd4 {[%emt 0:00:35]} exd4 {[%emt 0:00:12]} 31. Rxd4 {[%emt 0:00:37]} Bxe2 {[%emt 0:00:40]} 32. Qxe2 {[%emt 0:00:36]} Bc5 {[%emt 0:00:05]} 33. Rxe4 {[%emt 0:00:38]} Qxe4 {[%emt 0:00:33]} 0-1

[Event "CZE-ch Open 2019"]
[Site "Ostrava"]
[Date "2019.05.03"]
[Round "7.14"]
[White "Jasny, Stanislav"]
[Black "Belunek, Vladimir"]
[Result "1/2-1/2"]
[ECO "D43"]
[WhiteElo "2347"]
[BlackElo "2201"]
[Annotator "NA"]
[PlyCount "109"]
[EventDate "2019.04.27"]
[EventType "swiss"]
[EventCountry "CZE"]
[SourceTitle "playchess.com"]
[Source "ChessBase"]
[SourceQuality "1"]
[TimeControl "40/5400+30:1800+30"]

1. d4 {[%emt 0:00:00]} d5 {[%emt 0:00:34]} 2. c4 {[%emt 0:00:00]} c6 {[%emt 0:00:13]} 3. Nf3 {[%emt 0:00:12]} Nf6 {[%emt 0:00:09]} 4. Nc3 {[%emt 0:00:10]} e6 {[%emt 0:00:17]} 5. Bg5 {[%emt 0:01:12]} Nbd7 {[%emt 0:02:10]} 6. cxd5 {[%emt 0:00:22]} exd5 {[%emt 0:00:13]} 7. e3 {[%emt 0:00:10]} Be7 {[%emt 0:00:19]} 8. Bd3 {[%emt 0:00:30]} O-O {[%emt 0:00:23]} 9. Qc2 {[%emt 0:00:08]} Re8 {[%emt 0:00:16]} 10. O-O {[%emt 0:00:30]} Nf8 {[%emt 0:00:12]} 11. Ne5 {[%emt 0:05:39]} Ng4 {[%emt 0:01:08]} 12. Bxe7 {[%emt 0:00:12]} Qxe7 {[%emt 0:00:22]} 13. Nxg4 {[%emt 0:00:05]} Bxg4 {[%emt 0:00:14]} 14. Rfe1 {[%emt 0:00:09]} Qd6 {[%emt 0:11:59]} 15. Ne2 $146 {[%emt 0:02:45] D36: Queen's Gambit Declined: Exchange Variation: Main line (5 Bg5 c6 6 Qc2)} ({Predecessor:} 15. Rab1 Re6 16. b4 Rae8 17. b5 Rh6 18. f4 c5 19. Qf2 cxd4 20. exd4 Rhe6 21. Re5 Qa3 22. Qg3 f5 23. Nxd5 Qxa2 {½-½ (44) Gormally,D (2479)-Maciol,R (2245) England 2010}) 15... Bh5 {[%emt 0:03:16]} 16. Nf4 {[%emt 0:09:00]} Bg6 {[%emt 0:01:07]} 17. Nxg6 {[%emt 0:07:46]} hxg6 {[%emt 0:00:46]} 18. Rab1 {[%emt 0:00:14]} a5 {[%emt 0:04:48]} 19. Rec1 {[%emt 0:06:59]} Nd7 {[%emt 0:09:55]} 20. Qc3 {[%emt 0:04:13]} Ra7 {[%emt 0:25:24]} 21. g3 {[%emt 0:07:05]} Nf6 {[%emt 0:08:00]} 22. Qc5 {[%emt 0:02:39]} Qxc5 {[%emt 0:02:05]} 23. Rxc5 {[%emt 0:00:27]} Ne4 {[%emt 0:00:57]} 24. Bxe4 {[%emt 0:00:09]} Rxe4 {[%emt 0:00:09]} 25. b3 {[%emt 0:03:53]} Re6 {[%emt 0:04:38]} 26. Rbc1 {[%emt 0:00:42]} Kf8 {[%emt 0:04:53]} 27. a3 {[%emt 0:04:00]} Ra6 {[%emt 0:01:16]} 28. h4 {[%emt 0:00:48]} Ke7 {[%emt 0:00:21]} 29. Kg2 {[%emt 0:00:19]} Kd7 {[%emt 0:00:30]} 30. Kf3 {[%emt 0:00:49]} Ra8 {[%emt 0:02:12]} 31. Ke2 {[%emt 0:00:59]} f6 {[%emt 0:03:19]} 32. Kd3 {[%emt 0:00:21]} Ra7 {[%emt 0:00:45]} 33. Rh1 {[%emt 0:00:59]} Re8 {[%emt 0:00:35]} 34. f3 {[%emt 0:02:58]} b6 {[%emt 0:01:22]} 35. Rc2 {[%emt 0:00:33]} Kd6 {[%emt 0:00:28]} 36. h5 {[%emt 0:05:25]} Rh8 {[%emt 0:03:34]} 37. Rhc1 {[%emt 0:05:08]} Rc7 {[%emt 0:00:11]} 38. hxg6 {[%emt 0:00:07]} Rh6 {[%emt 0:00:04]} 39. g4 {[%emt 0:00:29]} Rxg6 {[%emt 0:00:09]} 40. Rh1 {[%emt 0:00:54]} Rc8 {[%emt 0:06:17]} 41. Rh5 {[%emt 0:34:02]} Rg5 {[%emt 0:15:24]} 42. Rxg5 {[%emt 0:00:00]} fxg5 {[%emt 0:00:38]} 43. Rh2 {[%emt 0:00:00]} Ke6 {[%emt 0:01:33]} 44. Rh5 {[%emt 0:00:00]} Kf6 {[%emt 0:00:06]} 45. f4 {[%emt 0:00:00]} gxf4 {[%emt 0:01:03]} 46. Rf5+ {[%emt 0:00:00]} Ke6 {[%emt 0:02:10]} 47. exf4 {[%emt 0:00:21]} Rh8 {[%emt 0:05:04]} 48. Re5+ {[%emt 0:00:13]} Kf7 {[%emt 0:00:12]} 49. b4 {[%emt 0:12:05]} Rh3+ {[%emt 0:01:16]} 50. Re3 {[%emt 0:00:07]} Rh4 {[%emt 0:00:11]} 51. bxa5 bxa5 {[%emt 0:00:04]} 52. Rg3 {[%emt 0:00:38]} Rh2 {[%emt 0:00:42]} 53. Kc3 {[%emt 0:03:12]} Ra2 $15 {[%emt 0:00:26]} 54. Kb3 {[%emt 0:00:12]} Rd2 {[%emt 0:00:04]} 55. Kc3 {[%emt 0:00:45]} 1/2-1/2

[Event "CZE-ch Open 2019"]
[Site "Ostrava"]
[Date "2019.05.03"]
[Round "7.15"]
[White "Babula, Milan"]
[Black "Rubes, Jan"]
[Result "1/2-1/2"]
[ECO "B32"]
[WhiteElo "2204"]
[BlackElo "2345"]
[Annotator "ChessBase"]
[PlyCount "158"]
[EventDate "2019.04.27"]
[EventType "swiss"]
[EventCountry "CZE"]
[SourceTitle "playchess.com"]
[Source "ChessBase"]
[SourceQuality "1"]
[TimeControl "40/5400+30:1800+30"]

1. e4 {[%emt 0:00:00]} c5 {[%emt 0:00:00]} 2. Nf3 {[%emt 0:00:00]} Nc6 {[%emt 0:00:00]} 3. d4 {[%emt 0:00:00]} cxd4 {[%emt 0:00:00]} 4. Nxd4 {[%emt 0:00:00]} e5 {[%emt 0:00:00]} 5. Nb5 {[%emt 0:00:50]} d6 {[%emt 0:00:00]} 6. a4 {[%emt 0:04:48]} a6 {[%emt 0:03:38]} 7. N5c3 {[%emt 0:00:22]} Be7 {[%emt 0:05:00]} 8. Bc4 {[%emt 0:00:45]} Nf6 {[%emt 0:00:52]} 9. O-O {[%emt 0:00:22]} O-O {[%emt 0:00:09]} 10. Na3 {[%emt 0:07:53]} Be6 {[%emt 0:02:32]} 11. Re1 {[%emt 0:15:35]} Rb8 {[%emt 0:03:13]} 12. Bg5 {[%emt 0:04:49]} Ne8 {[%emt 0:11:45]} 13. Bxe7 {[%emt 0:04:16]} Nxe7 {[%emt 0:03:14]} 14. Nd5 {[%emt 0:00:33]} Ng6 {[%emt 0:00:47]} 15. c3 {[%emt 0:01:27]} Qg5 {[%emt 0:08:20]} 16. Qc1 {[%emt 0:12:34]} Qh4 {[%emt 0:01:11]} 17. g3 {[%emt 0:01:27]} Qd8 {[%emt 0:02:28]} 18. Qd2 {[%emt 0:02:29]} Kh8 {[%emt 0:05:43]} 19. Rad1 {[%emt 0:02:22]} Bxd5 {[%emt 0:02:00]} 20. Bxd5 {[%emt 0:00:23]} Qd7 {[%emt 0:00:18]} 21. a5 {[%emt 0:02:31]} Nf6 {[%emt 0:07:32]} 22. Nc4 {[%emt 0:07:43]} Rbd8 {[%emt 0:00:48]} 23. Ne3 {[%emt 0:00:44]} Ne7 {[%emt 0:00:36]} 24. f3 {[%emt 0:00:56]} Qc7 {[%emt 0:05:47]} 25. c4 {[%emt 0:08:37]} Nfxd5 {[%emt 0:15:04]} 26. cxd5 {[%emt 0:04:47]} f5 {[%emt 0:00:53]} 27. Rc1 {[%emt 0:00:33]} Qd7 {[%emt 0:00:08]} 28. Rf1 {[%emt 0:03:17]} fxe4 {[%emt 0:08:01]} 29. fxe4 {[%emt 0:00:03]} Ng8 {[%emt 0:00:15]} 30. Rxf8 {[%emt 0:05:26]} Rxf8 {[%emt 0:00:04]} 31. Qb4 {[%emt 0:00:10]} Nf6 {[%emt 0:01:14]} 32. Rf1 {[%emt 0:00:53]} Kg8 {[%emt 0:03:30]} 33. Nf5 {[%emt 0:01:15]} Ne8 {[%emt 0:00:07]} 34. Ne3 {[%emt 0:00:41]} Rxf1+ {[%emt 0:00:11]} 35. Kxf1 {[%emt 0:00:49]} Qc7 {[%emt 0:06:16]} 36. Kf2 {[%emt 0:01:18]} Nf6 {[%emt 0:00:50]} 37. Ke2 {[%emt 0:04:38]} g6 {[%emt 0:01:10]} 38. g4 {[%emt 0:01:38]} h5 {[%emt 0:01:07]} 39. h3 {[%emt 0:00:57]} hxg4 {[%emt 0:00:42]} 40. hxg4 {[%emt 0:00:05]} Qd7 {[%emt 0:00:21]} 41. Kf3 {[%emt 0:31:29]} Qf7 {[%emt 0:34:13]} 42. Ke2 {[%emt 0:00:00]} Qd7 {[%emt 0:00:00]} 43. Kf3 {[%emt 0:00:00]} Nh7 {[%emt 0:00:00]} 44. Ke2 {[%emt 0:00:00]} Ng5 {[%emt 0:00:00]} 45. Kd3 {[%emt 0:00:00]} Kg7 {[%emt 0:00:00]} 46. Nc4 {[%emt 0:00:00]} Nf7 {[%emt 0:00:00]} 47. Ne3 {[%emt 0:00:00]} Kf6 {[%emt 0:00:00]} 48. Ke2 {[%emt 0:00:00]} Kg5 {[%emt 0:00:00]} 49. Kf3 {[%emt 0:00:00]} Qc8 {[%emt 0:00:00]} 50. Qe1 {[%emt 0:00:00]} Qh8 {[%emt 0:00:00]} 51. Qc1 {[%emt 0:03:54]} Kf6 {[%emt 0:00:00]} 52. Qc7 {[%emt 0:01:06]} Qh2 {[%emt 0:00:11]} 53. Ng2 {[%emt 0:00:19]} Ng5+ {[%emt 0:00:42]} 54. Kf2 {[%emt 0:00:17]} Nxe4+ {[%emt 0:00:12]} 55. Ke3 {[%emt 0:00:11]} Qg3+ {[%emt 0:02:07]} 56. Kxe4 {[%emt 0:00:03]} Qxg2+ {[%emt 0:00:03]} 57. Ke3 {[%emt 0:00:20]} Qxd5 {[%emt 0:00:58]} 58. Qd8+ {[%emt 0:00:01]} Kg7 {[%emt 0:00:10]} 59. g5 {[%emt 0:01:13]} Qb3+ {[%emt 0:01:38]} 60. Ke4 {[%emt 0:00:31]} Qf7 {[%emt 0:00:51]} 61. b4 {[%emt 0:01:10]} Kh7 {[%emt 0:01:41]} 62. Ke3 {[%emt 0:01:09]} d5 {[%emt 0:00:29]} 63. Ke2 {[%emt 0:00:09]} Kg7 {[%emt 0:00:27]} 64. Ke3 {[%emt 0:00:29]} Qf4+ {[%emt 0:01:09]} 65. Ke2 {[%emt 0:00:11]} Qf7 {[%emt 0:00:51]} 66. Ke3 {[%emt 0:00:05]} d4+ {[%emt 0:00:31]} 67. Kd3 {[%emt 0:00:24]} Qf5+ {[%emt 0:00:11]} 68. Kc4 {[%emt 0:00:08]} Qf7+ {[%emt 0:01:04]} 69. Kd3 {[%emt 0:00:07]} Kh7 {[%emt 0:00:09]} 70. Ke2 {[%emt 0:01:06]} Kg7 {[%emt 0:00:38]} 71. Kd3 {[%emt 0:00:08]} Qf5+ {[%emt 0:00:10]} 72. Kc4 {[%emt 0:00:07]} d3 {[%emt 0:00:04]} 73. Kc3 {[%emt 0:00:25]} e4 {[%emt 0:00:13]} 74. Qe7+ {[%emt 0:00:15]} Kg8 {[%emt 0:00:22]} 75. Qe8+ {[%emt 0:00:22]} Qf8 {[%emt 0:01:01]} 76. Qxe4 {[%emt 0:00:19]} Qd6 {[%emt 0:01:29]} 77. Qxb7 {[%emt 0:02:02]} d2 {[%emt 0:00:29]} 78. Qa8+ {[%emt 0:00:02]} Kg7 {[%emt 0:00:35]} 79. Qb7+ {[%emt 0:00:04]} Kg8 {[%emt 0:00:21]} 1/2-1/2

[Event "CZE-ch Open 2019"]
[Site "Ostrava"]
[Date "2019.05.03"]
[Round "7.16"]
[White "Blatny, Pavel"]
[Black "Zeman, Matyas"]
[Result "1-0"]
[ECO "A00"]
[WhiteElo "2326"]
[BlackElo "2244"]
[Annotator "NA"]
[PlyCount "71"]
[EventDate "2019.04.27"]
[EventType "swiss"]
[EventCountry "CZE"]
[SourceTitle "playchess.com"]
[Source "ChessBase"]
[SourceQuality "1"]
[TimeControl "40/5400+30:1800+30"]

1. e3 {[%emt 0:00:00]} Nf6 {[%emt 0:00:15]} 2. b3 {[%emt 0:01:56]} e5 {[%emt 0:03:26]} 3. Bb2 {[%emt 0:00:03]} d6 {[%emt 0:00:05]} 4. c4 {[%emt 0:00:29]} g6 {[%emt 0:00:42]} 5. Nc3 {[%emt 0:00:18]} Bg7 {[%emt 0:00:08]} 6. Nge2 {[%emt 0:00:41]} O-O {[%emt 0:00:58]} 7. g3 {[%emt 0:00:07]} Nc6 {[%emt 0:04:44]} 8. Bg2 {[%emt 0:00:07]} Bd7 {[%emt 0:02:35]} 9. O-O {[%emt 0:00:34]} Qc8 {[%emt 0:00:19]} 10. Nd5 {[%emt 0:04:23]} Bh3 {[%emt 0:03:01]} 11. Bxh3 {[%emt 0:02:41]} Qxh3 {[%emt 0:00:05]} 12. Nef4 {[%emt 0:00:33]} Qd7 {[%emt 0:06:18]} 13. Nxf6+ {[%emt 0:01:04]} Bxf6 {[%emt 0:00:03]} 14. Nd5 {[%emt 0:00:29]} Bg7 {[%emt 0:00:20]} 15. f4 {[%emt 0:00:46]} Ne7 {[%emt 0:01:59]} 16. Nxe7+ {[%emt 0:00:21]} Qxe7 {[%emt 0:00:05]} 17. f5 {[%emt 0:00:07]} Qg5 {[%emt 0:05:56]} 18. Qc2 {[%emt 0:05:23]} Rfe8 {[%emt 0:06:30]} 19. Rf2 {[%emt 0:00:37]} Rad8 {[%emt 0:03:29]} 20. Raf1 {[%emt 0:00:11]} c6 {[%emt 0:02:12]} 21. Kg2 {[%emt 0:01:28]} Rd7 {[%emt 0:06:36]} 22. Qe4 {[%emt 0:05:22]} a6 {[%emt 0:12:03]} 23. h4 {[%emt 0:04:38]} d5 {[%emt 0:03:17]} 24. cxd5 {[%emt 0:06:46]} cxd5 {[%emt 0:00:03]} 25. Qa4 {[%emt 0:00:06]} Qd8 {[%emt 0:00:04]} 26. h5 {[%emt 0:00:19]} gxf5 {[%emt 0:06:02]} 27. Rxf5 {[%emt 0:00:15]} Re6 {[%emt 0:02:57]} 28. Qg4 {[%emt 0:00:22]} Qe8 {[%emt 0:16:12]} 29. Bxe5 {[%emt 0:00:56]} f6 {[%emt 0:01:13]} 30. Bxf6 {[%emt 0:01:38]} Re4 {[%emt 0:00:06]} 31. Qf3 {[%emt 0:02:01]} h6 {[%emt 0:00:31]} 32. Bxg7 {[%emt 0:00:57]} Kxg7 {[%emt 0:00:01]} 33. Rf6 {[%emt 0:00:36]} Re5 {[%emt 0:01:33]} 34. Rg6+ {[%emt 0:00:17]} Kh7 {[%emt 0:00:03]} 35. g4 {[%emt 0:02:05]} d4 {[%emt 0:02:57]} 36. Qf6 {[%emt 0:00:31]} 1-0